lending/lending_fUSD_20250819
["ID","MTS","AMOUNT","RATE_DAILY","PERIOD"]
[380274310,1755630951245,-3426.21,0.00024917,30]
[380274311,1755630951324,-400.0,0.00024917,30]
[380274312,1755630951402,-2339.85,0.00024917,30]
[380274313,1755630951481,-1431.42,0.00024917,30]
[380274314,1755630951558,-400.0,0.00024917,30]
[380274315,1755630951634,-1879.73,0.00024917,30]
[380274316,1755630951709,-2605.4,0.00024917,30]
[380274317,1755630951792,-2170.2,0.00024917,30]
[380274318,1755630951870,-2965.05,0.00024917,30]
[380274319,1755630951948,-400.0,0.00024917,30]
[380274320,1755630952023,-1003.58,0.00024917,30]
[380274321,1755630952101,-1775.32,0.00024917,30]
[380274322,1755630952178,-667.84,0.00024917,30]
[380274323,1755630952256,-781.97,0.00024917,30]
[380274324,1755630952334,-2499.51,0.00024917,30]
[380274325,1755630952409,-400.0,0.00024917,30]
[380274326,1755630952485,-657.01,0.00024917,30]
[380274327,1755630952560,-400.0,0.00024917,30]
[380274328,1755630952637,-400.0,0.00024917,30]
[380274329,1755630952705,-400.0,0.00024917,30]
[380274330,1755630952776,-1626.0,0.00024917,30]
[380274331,1755630952843,-834.1,0.00024917,30]
[380274332,1755630952913,-762.72,0.00024917,30]
[380274333,1755630952988,-400.0,0.00024917,30]
[380274334,1755630953063,-812.96,0.00024917,30]
[380274335,1755630953136,-1795.88,0.00024917,30]
[380274336,1755630953211,-812.84,0.00024917,30]
[380274337,1755630953288,-400.0,0.00024917,30]
[380274338,1755630953364,-2037.62,0.00024917,30]
[380274339,1755630953439,-400.0,0.00024917,30]
[380274340,1755630953515,-2089.8,0.00024917,30]
[380274341,1755630953588,-400.0,0.00024917,30]
[380274342,1755630953662,-400.0,0.00024917,30]
[380274343,1755630953739,-912.15,0.00024917,30]
[380274344,1755630953813,-1867.16,0.00024917,30]
[380274345,1755630953891,-927.26,0.00024917,30]
[380274346,1755630953966,-400.0,0.00024917,30]
[380274347,1755630954042,-1264.15,0.00024917,30]
[380274348,1755630954119,-1632.29,0.00024917,30]
[380274349,1755630954199,-1147.83,0.00024917,30]
[380274350,1755630954275,-822.45,0.00024917,30]
[380274351,1755630954354,-400.0,0.00024917,30]
[380274352,1755630954431,-2642.11,0.00024917,30]
[380274353,1755630954507,-400.0,0.00024917,30]
[380274354,1755630954584,-437.64,0.00024917,30]
[380274355,1755630954659,-400.0,0.00024917,30]
[380274356,1755630954735,-854.72,0.00024917,30]
[380274357,1755630954809,-2923.07,0.00024917,30]
[380274358,1755630954885,-400.0,0.00024917,30]
[380274359,1755630954963,-2401.94,0.00024917,30]
[380274360,1755630955042,-531.2,0.00024917,30]
[380274361,1755630955120,-400.0,0.00024917,30]
[380274362,1755630955201,-888.25,0.00024917,30]
[380274363,1755630955278,-842.32,0.00024917,30]
[380274364,1755630955355,-1920.95,0.00024917,30]
[380274365,1755630955431,-1522.14,0.00024917,30]
[380274366,1755630955509,-1843.66,0.00024917,30]
[380274367,1755630955903,-589.48,0.00024917,30]
[380274368,1755630955982,-1357.11,0.00024917,30]
[380274369,1755630956060,-1090.36,0.00024917,30]
[380274370,1755630956139,-400.0,0.00024917,30]
[380274371,1755630956216,-400.0,0.00024917,30]
[380274372,1755630956296,-2036.5,0.00024917,30]
[380274373,1755630956373,-2160.01,0.00024917,30]
[380274374,1755630956449,-733.36,0.00024917,30]
[380274375,1755630956524,-1567.0,0.00024917,30]
[380274376,1755630956599,-2269.73,0.00024917,30]
[380274377,1755630956672,-2339.92,0.00024917,30]
[380274378,1755630956750,-7066.74,0.00024917,30]
[380274379,1755630956824,-400.0,0.00024917,30]
[380274380,1755630956899,-400.0,0.00024917,30]
[380274381,1755630956974,-1713.64,0.00024917,30]
[380274382,1755630957050,-530.76,0.00024917,30]
[380274383,1755630957132,-1159.8,0.00024917,30]
[380274384,1755630957210,-400.0,0.00024917,30]
[380274385,1755630957289,-400.0,0.00024917,30]
[380274386,1755630957366,-594.02,0.00024917,30]
[380274387,1755630957444,-2161.34,0.00024917,30]
[380274388,1755630957521,-785.37,0.00024917,30]
[380274389,1755630957596,-925.07,0.00024917,30]
[380274390,1755630957670,-400.0,0.00024917,30]
[380274391,1755630957745,-1533.15,0.00024917,30]
[380274392,1755630957817,-1094.8,0.00024917,30]
[380274393,1755630957890,-827.42,0.00024917,30]
[380274394,1755630957962,-521.78819957,0.00024917,30]
[380274395,1755630958034,-1481.14,0.00024917,30]
[380274396,1755630958109,-400.0,0.00024917,30]
[380274397,1755630958184,-400.0,0.00024917,30]
[380274398,1755630958258,-424.97,0.00024917,30]
[380274399,1755630958335,-2049.37,0.00024917,30]
[380274400,1755630958412,-400.0,0.00024917,30]
[380274401,1755630958487,-535.14,0.00024917,30]
[380274402,1755630958562,-2172.05,0.00024917,30]
[380274403,1755630958640,-400.0,0.00024917,30]
[380274404,1755630958714,-1532.6,0.00024917,30]
[380274405,1755630958791,-831.55,0.00024917,30]
[380274406,1755630958864,-853.09,0.00024917,30]
[380274407,1755630958936,-1512.48,0.00024917,30]
[380274408,1755630959008,-400.0,0.00024917,30]
[380274409,1755630959081,-757.23,0.00024917,30]
[380274410,1755630959156,-400.0,0.00024917,30]
[380274411,1755630959234,-834.74,0.00024917,30]
[380274412,1755630959312,-528.08,0.00024917,30]
[380274413,1755630959391,-400.0,0.00024917,30]
[380274414,1755630959468,-1466.98,0.00024917,30]
[380274415,1755630959545,-1667.74,0.00024917,30]
[380274416,1755630959619,-851.95,0.00024917,30]
[380274417,1755630959695,-400.0,0.00024917,30]
[380274418,1755630959773,-3654.91,0.00024917,30]
[380274419,1755630959847,-400.0,0.00024917,30]
[380274420,1755630959922,-585.37,0.00024917,30]
[380274421,1755630959996,-1830.83,0.00024917,30]
[380274422,1755630960075,-1678.23,0.00024917,30]
[380274423,1755630960161,-500.95,0.00024917,30]
[380274424,1755630960256,-400.0,0.00024917,30]
[380274425,1755630960339,-990.17,0.00024917,30]
[380274426,1755630960421,-1296.84,0.00024917,30]
[380274427,1755630960502,-1498.02,0.00024917,30]
[380274428,1755630960583,-414.92,0.00024917,30]
[380274429,1755630960663,-1422.74,0.00024917,30]
[380274430,1755630960744,-490.9,0.00024917,30]
[380274431,1755630960823,-684.54,0.00024917,30]
[380274432,1755630960904,-837.81,0.00024917,30]
[380274433,1755630960985,-1994.78,0.00024917,30]
[380274434,1755630961064,-400.0,0.00024917,30]
[380274435,1755630961145,-916.66,0.00024917,30]
[380274436,1755630961231,-1483.77,0.00024917,30]
[380274437,1755630961313,-2023.25,0.00024917,30]
[380274438,1755630961396,-400.0,0.00024917,30]
[380274439,1755630961476,-5424.17,0.00024917,30]
[380274440,1755630961559,-827.87,0.00024917,30]
[380274441,1755630961642,-400.0,0.00024917,30]
[380274442,1755630961722,-1863.32,0.00024917,30]
[380274443,1755630961807,-1962.6,0.00024917,30]
[380274444,1755630961884,-539.12,0.00024917,30]
[380274445,1755630961961,-1489.75,0.00024917,30]
[380274446,1755630962038,-804.37,0.00024917,30]
[380274447,1755630962122,-1279.96,0.00024917,30]
[380274448,1755630962202,-879.44,0.00024917,30]
[380274449,1755630962281,-400.0,0.00024917,30]
[380274450,1755630962360,-736.46,0.00024917,30]
[380274451,1755630962442,-400.0,0.00024917,30]
[380274452,1755630962523,-3004.1,0.00024917,30]
[380274453,1755630962603,-540.41,0.00024917,30]
[380274454,1755630962694,-903.83,0.00024917,30]
[380274455,1755630962777,-400.0,0.00024917,30]
[380274456,1755630962855,-400.0,0.00024917,30]
[380274457,1755630962933,-452.13,0.00024917,30]
[380274458,1755630963013,-768.98,0.00024917,30]
[380274459,1755630963092,-1813.68,0.00024917,30]
[380274460,1755630963175,-400.0,0.00024917,30]
[380274461,1755630963276,-400.0,0.00024917,30]
[380274462,1755630963358,-254.10413735,0.00024917,30]
[380274463,1755630963443,-2223.82,0.00024917,30]
[380274464,1755630963527,-400.0,0.00024917,30]
[380274465,1755630963606,-400.0,0.00024917,30]
[380274466,1755630963689,-2140.5,0.00024917,30]
[380274467,1755630963773,-762.55,0.00024917,30]
[380274468,1755630963856,-2978.0,0.00024917,30]
[380274469,1755630963937,-1352.34,0.00024917,30]
[380274470,1755630964019,-518.70455311,0.00024917,30]
[380274471,1755630964102,-447.68,0.00024917,30]
[380274472,1755630964187,-2258.26,0.00024917,30]
[380274473,1755630964271,-400.0,0.00024917,30]
[380274474,1755630964355,-400.0,0.00024917,30]
[380274475,1755630964446,-666.94,0.00024917,30]
[380274476,1755630964529,-400.0,0.00024917,30]
[380274477,1755630964611,-400.0,0.00024917,30]
[380274478,1755630964695,-400.0,0.00024917,30]
[380274479,1755630964777,-699.19,0.00024917,30]
[380274480,1755630964859,-1577.31,0.00024917,30]
[380274481,1755630965330,-786.12,0.00024917,30]
[380274482,1755630965413,-1078.83,0.00024917,30]
[380274483,1755630965492,-400.0,0.00024917,30]
[380274484,1755630965573,-685.74,0.00024917,30]
[380274485,1755630965652,-1514.98,0.00024917,30]
[380274486,1755630965732,-686.36,0.00024917,30]
[380274487,1755630965808,-400.0,0.00024917,30]
[380274488,1755630965881,-400.0,0.00024917,30]
[380274489,1755630965954,-400.0,0.00024917,30]
[380274490,1755630966029,-783.3,0.00024917,30]
[380274491,1755630966110,-400.0,0.00024917,30]
[380274492,1755630966189,-927.22,0.00024917,30]
[380274493,1755630966271,-858.73,0.00024917,30]
[380274494,1755630966351,-463.57,0.00024917,30]
[380274495,1755630966439,-638.06,0.00024917,30]
[380274496,1755630966517,-1217.67,0.00024917,30]
[380274497,1755630966596,-1055.26,0.00024917,30]
[380274498,1755630966677,-617.22,0.00024917,30]
[380274499,1755630966756,-654.88,0.00024917,30]
[380274500,1755630966837,-927.42,0.00024917,30]
[380274501,1755630966915,-400.0,0.00024917,30]
[380274502,1755630966993,-877.36,0.00024917,30]
[380274503,1755630967073,-1451.41,0.00024917,30]
[380274504,1755630967156,-400.0,0.00024917,30]
[380274505,1755630967238,-774.15,0.00024917,30]
[380274506,1755630967320,-755.17,0.00024917,30]
[380274507,1755630967401,-1269.4,0.00024917,30]
[380274508,1755630967483,-850.21,0.00024917,30]
[380274509,1755630967564,-400.0,0.00024917,30]
[380274510,1755630967642,-2050.78,0.00024917,30]
[380274511,1755630967722,-1574.07,0.00024917,30]
[380274512,1755630967803,-400.0,0.00024917,30]
[380274513,1755630967883,-3252.62,0.00024917,30]
[380274514,1755630967960,-223.96425804,0.00024917,30]
[380274515,1755630999795,-5455.6877083,9.588e-05,2]
[380274516,1755631001722,-579.36353194,9.588e-05,2]
[380274517,1755631001734,-277.04933151,9.588e-05,2]
[380274518,1755631001748,-490.24643896,9.588e-05,2]
[380274519,1755631001768,-2264.262,9.588e-05,2]
[380274520,1755631001780,-1716.02901,9.588e-05,2]
[380274521,1755631001791,-13322.85197929,9.588e-05,2]
[380274522,1755631001805,-300.0,9.607e-05,2]
[380274523,1755631001815,-2000.0,9.607e-05,2]
[380274524,1755631001826,-500.0,9.607e-05,2]
[380274525,1755631001835,-165.54,9.625e-05,2]
[380274526,1755631001844,-300.0,9.646e-05,2]
[380274527,1755631001853,-500.0,9.646e-05,2]
[380274528,1755631001862,-1476.84,9.658e-05,2]
[380274529,1755631001871,-915.00997218,9.658e-05,2]
[380274530,1755631001880,-473.1,9.705e-05,2]
[380274531,1755631001889,-2710.38,9.705e-05,2]
[380274532,1755631001898,-2504.33,9.834e-05,2]
[380274533,1755631001907,-170.0,9.836e-05,7]
[380274534,1755631001916,-263.19,9.852e-05,2]
[380274535,1755631001925,-173.54,9.86e-05,2]
[380274536,1755631001935,-471.06,9.875e-05,2]
[380274537,1755631001944,-505.11,9.885e-05,2]
[380274538,1755631001953,-1000.0,0.00010044,2]
[380274539,1755631001962,-3000.0,0.00010214,2]
[380274540,1755631001971,-250.0,0.00010547,2]
[380274541,1755631001980,-2500.0,0.00010547,2]
[380274542,1755631001988,-300.0,0.00010547,2]
[380274543,1755631001997,-2000.0,0.00010547,2]
[380274544,1755631002006,-500.0,0.00010547,2]
[380274545,1755631002015,-468.78,0.00010645,2]
[380274546,1755631002027,-468.62,0.00010647,2]
[380274547,1755631002035,-212.02104404,0.00010727,2]
[380274548,1755631002045,-458.43483364,0.00010727,2]
[380274549,1755631002054,-843.87140665,0.00010727,2]
[380274550,1755631002063,-160.0,0.00010727,2]
[380274551,1755631002072,-1420.40873689,0.0001078,2]
[380274552,1755631002082,-218.72824402,0.00010893,2]
[380274553,1755631002091,-300.0,0.00010893,2]
[380274554,1755631002101,-200.0,0.00010893,2]
[380274555,1755631002110,-956.3906036,0.000109,2]
[380274556,1755631002119,-158.50633027,0.000109,2]
[380274557,1755631002128,-1000.0,0.000109,2]
[380274558,1755631002137,-1234.1123,0.000109,2]
[380274559,1755631002147,-5000.0,0.000109,2]
[380274560,1755631002156,-449.51952132,0.000109,2]
[380274561,1755631002165,-2000.0,0.00010959,2]
[380274562,1755631002174,-150.0,0.00010959,2]
[380274563,1755631002183,-150.0,0.00010959,2]
[380274564,1755631002191,-500.0,0.00010973,2]
[380274565,1755631002200,-500.0,0.00010973,2]
[380274566,1755631002209,-444.90640426,0.00010973,2]
[380274567,1755631002221,-55.09359574,0.00010973,2]
[380274568,1755631002231,-500.0,0.00010973,2]
[380274569,1755631002241,-500.0,0.00010973,2]
[380274570,1755631002250,-500.0,0.00010973,2]
[380274571,1755631002260,-500.0,0.00010973,2]
[380274572,1755631002272,-649.24775804,0.00010973,2]
[380274573,1755631002281,-500.0,0.00010973,2]
[380274574,1755631002291,-300.1023286,0.00010973,2]
[380274575,1755631002299,-500.0,0.00010973,2]
[380274576,1755631002308,-500.0,0.00010973,2]
[380274577,1755631002318,-500.20349937,0.00010973,2]
[380274578,1755631002326,-500.0,0.00010973,2]
[380274579,1755631002335,-500.0,0.00010973,2]
[380274580,1755631002344,-500.0,0.00010973,2]
[380274581,1755631002353,-486.09276474,0.00010973,2]
[380274582,1755631002362,-500.28318788,0.00010973,2]
[380274583,1755631002371,-500.0,0.00010973,2]
[380274584,1755631002380,-500.0,0.00010973,2]
[380274585,1755631002389,-500.0,0.00010973,2]
[380274586,1755631002398,-454.43916054,0.00010973,2]
[380274587,1755631002407,-500.0,0.00010973,2]
[380274588,1755631002416,-502.72473506,0.00010973,2]
[380274589,1755631002425,-500.0,0.00010973,2]
[380274590,1755631002434,-500.0,0.00010973,2]
[380274591,1755631002444,-2459.21621118,0.00010978,2]
[380274592,1755631002454,-321.06082628,0.0001098,2]
[380274593,1755631002463,-239.6278969,0.0001099,2]
[380274594,1755631002473,-155.0,0.00010999,2]
[380274595,1755631002482,-500.0,0.00010999,2]
[380274596,1755631002491,-500.0,0.00010999,2]
[380274597,1755631002501,-500.0,0.00010999,2]
[380274598,1755631002510,-500.0,0.00010999,2]
[380274599,1755631002523,-500.0,0.00010999,2]
[380274600,1755631002533,-500.0,0.00010999,2]
[380274601,1755631002844,-500.0,0.00010999,2]
[380274602,1755631002854,-500.0,0.00010999,2]
[380274603,1755631002863,-500.0,0.00010999,2]
[380274604,1755631002872,-500.0,0.00010999,2]
[380274605,1755631002881,-500.0,0.00010999,2]
[380274606,1755631002890,-500.0,0.00010999,2]
[380274607,1755631002899,-500.0,0.00010999,2]
[380274608,1755631002908,-500.0,0.00010999,2]
[380274609,1755631002917,-623.26280908,0.00010999,2]
[380274610,1755631002926,-1818.0,0.00011,2]
[380274611,1755631002934,-117152.70791875,0.00011,2]
[380274612,1755631002945,-4912.53319151,0.00011,2]
[380274613,1755631002956,-15769.03875773,0.00011,2]
[380274614,1755631002967,-354.495,0.00011,2]
[380274615,1755631002978,-2165.93625508,0.00011,2]
[380274616,1755631002994,-581.715798,0.00011,2]
[380274617,1755631003004,-592.89999999,0.00011,2]
[380274618,1755631003018,-495.77108,0.00011,2]
[380274619,1755631003038,-3061.44529943,0.00011,2]
[380274620,1755631003049,-30396.61726396,0.00011,2]
[380274621,1755631003065,-60735.58723617,0.00011,2]
[380274622,1755631003076,-552.2,0.00011,2]
[380274623,1755631003087,-269.19336745,0.00011,2]
[380274624,1755631003098,-1700.1,0.00011,2]
[380274625,1755631003888,-4501.0,0.00011,2]
[380274626,1755631003900,-14284.38609502,0.00011,2]
[380274627,1755631003922,-361.28,0.00011,2]
[380274628,1755631003937,-2479.69824162,0.00011,2]
[380274629,1755631003948,-364.01815995,0.00011,2]
[380274630,1755631004459,-181266.87818817,0.00011,2]
[380274631,1755631004471,-105918.0000589,0.00011,2]
[380274632,1755631004481,-8681.02756634,0.00011,2]
[380274633,1755631004509,-961.06895374,0.00011,2]
[380274634,1755631004541,-147511.5237132,0.00011,2]
[380274635,1755631004551,-30912.34359964,0.00011,2]
[380274636,1755631004563,-609.18080498,0.00011,2]
[380274637,1755631004574,-1763.34352191,0.00011,2]
[380274638,1755631004585,-988.05227216,0.00011,2]
[380274639,1755631004671,-5662.8617442,0.00011,2]
[380274640,1755631004689,-30102.17839999,0.00011,2]
[380274641,1755631004699,-7878.8381512,0.00011,2]
[380274642,1755631005447,-13758.18959229,0.00011,2]
[380274643,1755631005458,-432.0890286,0.00011,2]
[380274644,1755631005520,-1473.49046048,0.00011,2]
[380274645,1755631005531,-810.01110762,0.00011,2]
[380274646,1755631005541,-5937.15669147,0.00011,2]
[380274647,1755631006436,-86871.60783544,0.00011,2]
[380274648,1755631006451,-1649.14463109,0.00011,2]
[380274649,1755631006481,-1104.29133073,0.00011,2]
[380274650,1755631006492,-4549.2128924,0.00011,2]
[380274651,1755631006516,-41433.12000005,0.00011,2]
[380274652,1755631006536,-414410.28940886,0.00011,2]
[380274653,1755631006548,-10312.57160667,0.00011,2]
[380274654,1755631006558,-17488.30844133,0.00011,2]
[380274655,1755631006574,-3431.799992,0.00011,2]
[380274656,1755631006585,-1061.8,0.00011,2]
[380274657,1755631006596,-158514.2140143,0.00011,2]
[380274658,1755631031172,-1812.63,0.00021945,30]
[380274659,1755631031207,-166.0,0.00022999,30]
[380274660,1755631031234,-400.0,0.00022999,30]
[380274661,1755631031260,-400.0,0.00022999,30]
[380274662,1755631031287,-400.0,0.00022999,30]
[380274663,1755631031312,-400.0,0.00022999,30]
[380274664,1755631031337,-400.0,0.00022999,30]
[380274665,1755631031367,-400.0,0.00022999,30]
[380274666,1755631031391,-400.0,0.00022999,30]
[380274667,1755631031416,-400.0,0.00022999,30]
[380274668,1755631031441,-400.0,0.00022999,30]
[380274669,1755631031467,-400.0,0.00022999,30]
[380274670,1755631031490,-400.0,0.00022999,30]
[380274671,1755631031516,-591.41,0.00022999,30]
[380274672,1755631031539,-400.0,0.00022999,30]
[380274673,1755631031563,-400.0,0.00022999,30]
[380274674,1755631031586,-1211.51,0.00022999,30]
[380274675,1755631031609,-657.43,0.00022999,30]
[380274676,1755631031632,-1321.19,0.00022999,30]
[380274677,1755631031655,-2333.41,0.00022999,30]
[380274678,1755631031678,-400.0,0.00022999,30]
[380274679,1755631031702,-3141.86,0.00022999,30]
[380274680,1755631031726,-400.0,0.00022999,30]
[380274681,1755631031752,-400.0,0.00022999,30]
[380274682,1755631031775,-895.33,0.00022999,30]
[380274683,1755631031801,-441.64,0.00022999,30]
[380274684,1755631031826,-5048.43,0.00022999,30]
[380274685,1755631031851,-400.0,0.00022999,30]
[380274686,1755631031875,-1312.21,0.00022999,30]
[380274687,1755631031900,-610.43,0.00022999,30]
[380274688,1755631031923,-912.37,0.00022999,30]
[380274689,1755631031947,-400.0,0.00022999,30]
[380274690,1755631031972,-400.0,0.00022999,30]
[380274691,1755631031996,-2638.42,0.00022999,30]
[380274692,1755631032019,-2777.22,0.00022999,30]
[380274693,1755631032044,-410.44,0.00022999,30]
[380274694,1755631032068,-542.11,0.00022999,30]
[380274695,1755631032093,-400.0,0.00022999,30]
[380274696,1755631032116,-400.0,0.00022999,30]
[380274697,1755631032140,-854.75,0.00022999,30]
[380274698,1755631032164,-400.0,0.00022999,30]
[380274699,1755631032189,-400.0,0.00022999,30]
[380274700,1755631032214,-400.0,0.00022999,30]
[380274701,1755631032238,-582.29,0.00022999,30]
[380274702,1755631032262,-2058.34,0.00022999,30]
[380274703,1755631032287,-227.8300097,0.00022999,30]
[380274704,1755631032310,-400.0,0.00022999,30]
[380274705,1755631032335,-807.81,0.00022999,30]
[380274706,1755631032359,-544.67,0.00022999,30]
[380274707,1755631032383,-2108.39,0.00022999,30]
[380274708,1755631032408,-400.0,0.00022999,30]
[380274709,1755631032818,-432.37,0.00022999,30]
[380274710,1755631032862,-3236.93,0.00022999,30]
[380274711,1755631032888,-2755.38,0.00022999,30]
[380274712,1755631032914,-400.0,0.00022999,30]
[380274713,1755631032939,-494.07,0.00022999,30]
[380274714,1755631032965,-771.8,0.00022999,30]
[380274715,1755631032990,-400.0,0.00022999,30]
[380274716,1755631033016,-1688.58,0.00022999,30]
[380274717,1755631033040,-1485.66,0.00022999,30]
[380274718,1755631033065,-400.0,0.00022999,30]
[380274719,1755631033090,-514.22,0.00022999,30]
[380274720,1755631033116,-400.0,0.00022999,30]
[380274721,1755631033144,-400.0,0.00022999,30]
[380274722,1755631033171,-2731.01,0.00022999,30]
[380274723,1755631033200,-400.0,0.00022999,30]
[380274724,1755631033228,-400.0,0.00022999,30]
[380274725,1755631033257,-400.0,0.00022999,30]
[380274726,1755631033282,-400.0,0.00022999,30]
[380274727,1755631033315,-716.5,0.00022999,30]
[380274728,1755631033343,-408.32,0.00022999,30]
[380274729,1755631033371,-400.0,0.00022999,30]
[380274730,1755631033398,-1382.11,0.00022999,30]
[380274731,1755631033425,-2951.24,0.00022999,30]
[380274732,1755631033453,-400.0,0.00022999,30]
[380274733,1755631033480,-6757.75,0.00022999,30]
[380274734,1755631033507,-812.97,0.00022999,30]
[380274735,1755631033535,-400.0,0.00022999,30]
[380274736,1755631033562,-1417.55,0.00022999,30]
[380274737,1755631033588,-1007.53,0.00022999,30]
[380274738,1755631033616,-400.0,0.00022999,30]
[380274739,1755631033642,-2420.72,0.00022999,30]
[380274740,1755631033669,-447.89,0.00022999,30]
[380274741,1755631033696,-400.0,0.00022999,30]
[380274742,1755631033725,-400.0,0.00022999,30]
[380274743,1755631033755,-553.64,0.00022999,30]
[380274744,1755631033781,-400.0,0.00022999,30]
[380274745,1755631033811,-500.0,0.00022999,30]
[380274746,1755631033839,-500.0,0.00022999,30]
[380274747,1755631033868,-500.0,0.00022999,30]
[380274748,1755631033896,-744.53,0.00022999,30]
[380274749,1755631033925,-500.0,0.00022999,30]
[380274750,1755631033952,-500.0,0.00022999,30]
[380274751,1755631033979,-435.73366222,0.00022999,30]
[380274752,1755631034006,-1648.48,0.00022999,30]
[380274753,1755631034039,-1672.31,0.00022999,30]
[380274754,1755631034069,-8716.72,0.00022999,30]
[380274755,1755631034096,-1174.9,0.00022999,30]
[380274756,1755631034121,-400.0,0.00022999,30]
[380274757,1755631034146,-1247.73,0.00022999,30]
[380274758,1755631034172,-400.0,0.00022999,30]
[380274759,1755631034199,-2800.23,0.00022999,30]
[380274760,1755631034226,-400.0,0.00022999,30]
[380274761,1755631034252,-400.0,0.00022999,30]
[380274762,1755631034278,-541.51,0.00022999,30]
[380274763,1755631034308,-1855.67,0.00022999,30]
[380274764,1755631034334,-400.0,0.00022999,30]
[380274765,1755631034360,-2735.6,0.00022999,30]
[380274766,1755631034388,-1549.4,0.00022999,30]
[380274767,1755631034412,-378.53531743,0.00022999,30]
[380274768,1755631034438,-549.35,0.00022999,30]
[380274769,1755631034464,-1083.07,0.00022999,30]
[380274770,1755631034490,-1600.8,0.00022999,30]
[380274771,1755631034516,-400.0,0.00022999,30]
[380274772,1755631034542,-400.0,0.00022999,30]
[380274773,1755631034569,-473.47,0.00022999,30]
[380274774,1755631034595,-400.0,0.00022999,30]
[380274775,1755631034619,-400.0,0.00022999,30]
[380274776,1755631034645,-2521.93,0.00022999,30]
[380274777,1755631034672,-407.03,0.00022999,30]
[380274778,1755631034697,-400.0,0.00022999,30]
[380274779,1755631034723,-1663.82,0.00022999,30]
[380274780,1755631034751,-1863.39,0.00022999,30]
[380274781,1755631034778,-2006.03,0.00022999,30]
[380274782,1755631034804,-867.04,0.00022999,30]
[380274783,1755631034829,-1558.27,0.00022999,30]
[380274784,1755631034855,-1625.91,0.00022999,30]
[380274785,1755631034880,-400.0,0.00022999,30]
[380274786,1755631034904,-400.0,0.00022999,30]
[380274787,1755631034930,-3914.85,0.00022999,30]
[380274788,1755631034955,-801.03,0.00022999,30]
[380274789,1755631034979,-400.0,0.00022999,30]
[380274790,1755631035005,-1784.81,0.00022999,30]
[380274791,1755631035031,-400.0,0.00022999,30]
[380274792,1755631035057,-2242.56,0.00022999,30]
[380274793,1755631035083,-1785.17,0.00022999,30]
[380274794,1755631035111,-1700.25,0.00022999,30]
[380274795,1755631035137,-834.13,0.00022999,30]
[380274796,1755631035164,-400.0,0.00022999,30]
[380274797,1755631035190,-1018.63,0.00022999,30]
[380274798,1755631035216,-484.61,0.00022999,30]
[380274799,1755631035243,-400.0,0.00022999,30]
[380274800,1755631035268,-400.0,0.00022999,30]
[380274801,1755631035294,-400.0,0.00022999,30]
[380274802,1755631035323,-400.0,0.00022999,30]
[380274803,1755631035350,-801.25,0.00022999,30]
[380274804,1755631035669,-1460.04,0.00022999,30]
[380274805,1755631035694,-4032.43,0.00022999,30]
[380274806,1755631035718,-400.0,0.00022999,30]
[380274807,1755631035746,-2527.74,0.00022999,30]
[380274808,1755631035771,-4275.48,0.00022999,30]
[380274809,1755631035797,-400.0,0.00022999,30]